[Event "Titled Tuesday Blitz May 24 Late 2022"]
[White "Onslow, Alfie"]
[Black "Petre, Nad-Titus"]
[WhiteFideId "436976"]
[BlackFideId "1204165"]
[WhiteElo "1885"]
[BlackElo "2354"]
[Result "0-1"]
[Round "01"]
[TimeControl "180+1"]
[Date "2022.05.25"]
[WhiteClock "0:00:04"]
[BlackClock "0:00:34"]

1. Nf3 {[%clk 0:02:57]}  Nf6 {[%clk 0:02:59]} 2. c4 {[%clk 0:02:57]}  g6 {[%clk 0:02:56]} 3. b3 {[%clk 0:02:56]}  Bg7 {[%clk 0:02:56]} 4. Bb2 {[%clk 0:02:57]}  c5 {[%clk 0:02:53]} 5. g3 {[%clk 0:02:51]}  d6 {[%clk 0:02:47]} 6. Bg2 {[%clk 0:02:52]}  Nc6 {[%clk 0:02:47]} 7. O-O {[%clk 0:02:52]}  O-O {[%clk 0:02:46]} 8. d4 {[%clk 0:02:49]}  Ne4 {[%clk 0:02:41]} 9. Nbd2 {[%clk 0:02:45]}  Bf5 {[%clk 0:02:24]} 10. Nxe4 {[%clk 0:02:37]}  Bxe4 {[%clk 0:02:25]} 11. e3 {[%clk 0:02:38]}  cxd4 {[%clk 0:02:02]} 12. Nxd4 {[%clk 0:02:28]}  Bxg2 {[%clk 0:01:57]} 13. Kxg2 {[%clk 0:02:29]}  Qd7 {[%clk 0:01:57]} 14. Qd2 {[%clk 0:02:20]}  Rfd8 {[%clk 0:01:55]} 15. e4 {[%clk 0:02:05]}  Nxd4 {[%clk 0:01:47]} 16. Bxd4 {[%clk 0:02:06]}  b5 {[%clk 0:01:47]} 17. Bxg7 {[%clk 0:01:57]}  Kxg7 {[%clk 0:01:48]} 18. cxb5 {[%clk 0:01:51]}  Qxb5 {[%clk 0:01:47]} 19. Rac1 {[%clk 0:01:51]}  a5 {[%clk 0:01:34]} 20. Rc4 {[%clk 0:01:47]}  a4 {[%clk 0:01:29]} 21. Qd4+ {[%clk 0:01:27]}  f6 {[%clk 0:01:29]} 22. bxa4 {[%clk 0:01:19]}  Qd7 {[%clk 0:01:23]} 23. Rfc1 {[%clk 0:01:18]}  Ra7 {[%clk 0:01:23]} 24. Qd5 {[%clk 0:01:15]}  Rda8 {[%clk 0:01:19]} 25. h4 {[%clk 0:01:01]}  Qd8 {[%clk 0:01:18]} 26. Qe6 {[%clk 0:00:53]}  Qd7 {[%clk 0:01:05]} 27. Qxd7 {[%clk 0:00:48]}  Rxd7 {[%clk 0:01:05]} 28. R1c2 {[%clk 0:00:40]}  Rda7 {[%clk 0:01:03]} 29. Rc7 {[%clk 0:00:39]}  Kf7 {[%clk 0:01:04]} 30. Rxa7 {[%clk 0:00:38]}  Rxa7 {[%clk 0:01:05]} 31. Rc4 {[%clk 0:00:38]}  h5 {[%clk 0:00:58]} 32. Kf3 {[%clk 0:00:38]}  Ke6 {[%clk 0:00:58]} 33. Ke3 {[%clk 0:00:36]}  Ra5 {[%clk 0:00:55]} 34. Rb4 {[%clk 0:00:35]}  Kd7 {[%clk 0:00:50]} 35. Kd4 {[%clk 0:00:34]}  Kc6 {[%clk 0:00:49]} 36. f4 {[%clk 0:00:32]}  e5+ {[%clk 0:00:44]} 37. Ke3 {[%clk 0:00:27]}  Rc5 {[%clk 0:00:41]} 38. Kd3 {[%clk 0:00:21]}  exf4 {[%clk 0:00:38]} 39. gxf4 {[%clk 0:00:20]}  g5 {[%clk 0:00:36]} 40. fxg5 {[%clk 0:00:19]}  fxg5 {[%clk 0:00:37]} 41. hxg5 {[%clk 0:00:12]}  Rxg5 {[%clk 0:00:38]} 42. Ke3 {[%clk 0:00:11]}  h4 {[%clk 0:00:35]} 43. Rb2 {[%clk 0:00:08]}  Rg3+ {[%clk 0:00:35]} 44. Kf4 {[%clk 0:00:07]}  Ra3 {[%clk 0:00:36]} 45. Rh2 {[%clk 0:00:05]}  h3 {[%clk 0:00:35]} 46. Kg4 {[%clk 0:00:03]}  Rxa4 {[%clk 0:00:35]} 47. Rxh3 {[%clk 0:00:03]}  Rxe4+ {[%clk 0:00:35]} 48. Kf5 {[%clk 0:00:03]}  Rc4 {[%clk 0:00:34]} 49. Rh2 {[%clk 0:00:03]}  d5 {[%clk 0:00:33]} 50. Ke5 {[%clk 0:00:03]}  Kc5 {[%clk 0:00:33]} 51. Rg2 {[%clk 0:00:02]}  Re4+ {[%clk 0:00:34]} 52. Kf5 {[%clk 0:00:02]}  Ra4 {[%clk 0:00:32]} 53. Ke5 {[%clk 0:00:02]}  Re4+ {[%clk 0:00:32]} 54. Kf5 {[%clk 0:00:02]}  Re3 {[%clk 0:00:32]} 55. Rf2 {[%clk 0:00:02]}  Rc3 {[%clk 0:00:31]} 56. Kf4 {[%clk 0:00:03]}  d4 {[%clk 0:00:31]} 57. Ke4 {[%clk 0:00:03]}  Kc4 {[%clk 0:00:32]} 58. Rd2 {[%clk 0:00:03]}  Re3+ {[%clk 0:00:32]} 59. Kf4 {[%clk 0:00:02]}  Re8 {[%clk 0:00:32]} 60. a4 {[%clk 0:00:03]}  Kc3 {[%clk 0:00:33]} 61. Rd1 {[%clk 0:00:03]}  d3 {[%clk 0:00:32]} 62. a5 {[%clk 0:00:03]}  Kc2 {[%clk 0:00:32]} 63. Ra1 {[%clk 0:00:03]}  d2 {[%clk 0:00:32]} 64. a6 {[%clk 0:00:04]}  d1=Q {[%clk 0:00:32]} 65. Rxd1 {[%clk 0:00:04]}  Kxd1 {[%clk 0:00:33]} 66. a7 {[%clk 0:00:04]}  Ra8 {[%clk 0:00:34]} 0-1


[Site "https://www.chess.com"]

[Event "Titled Tuesday Blitz May 24 Late 2022"]
[White "Papp, Levente"]
[Black "Shapiro, Daniel"]
[WhiteFideId "751243"]
[BlackFideId "2001780"]
[WhiteElo "2308"]
[BlackElo "2263"]
[Result "1-0"]
[Round "01"]
[TimeControl "180+1"]
[Date "2022.05.25"]
[WhiteClock "0:00:37"]
[BlackClock "0:00:44"]

1. Nf3 {[%clk 0:03:00]}  Nf6 {[%clk 0:02:59]} 2. g3 {[%clk 0:03:00]}  d5 {[%clk 0:02:57]} 3. Bg2 {[%clk 0:02:59]}  g6 {[%clk 0:02:57]} 4. O-O {[%clk 0:03:00]}  Bg7 {[%clk 0:02:57]} 5. c4 {[%clk 0:02:58]}  c6 {[%clk 0:02:54]} 6. cxd5 {[%clk 0:02:55]}  cxd5 {[%clk 0:02:54]} 7. d4 {[%clk 0:02:53]}  O-O {[%clk 0:02:53]} 8. Nc3 {[%clk 0:02:54]}  Nc6 {[%clk 0:02:52]} 9. Ne5 {[%clk 0:02:53]}  Na5 {[%clk 0:02:36]} 10. b4 {[%clk 0:02:45]}  Nc6 {[%clk 0:02:19]} 11. Nxc6 {[%clk 0:02:34]}  bxc6 {[%clk 0:02:20]} 12. e3 {[%clk 0:02:13]}  Ba6 {[%clk 0:02:18]} 13. Re1 {[%clk 0:02:12]}  Bc4 {[%clk 0:02:15]} 14. a4 {[%clk 0:02:03]}  a5 {[%clk 0:02:12]} 15. b5 {[%clk 0:02:03]}  cxb5 {[%clk 0:02:09]} 16. axb5 {[%clk 0:02:04]}  e6 {[%clk 0:02:01]} 17. Bf1 {[%clk 0:01:40]}  Bxf1 {[%clk 0:01:58]} 18. Rxf1 {[%clk 0:01:41]}  Qd6 {[%clk 0:01:47]} 19. Ba3 {[%clk 0:01:40]}  Qc7 {[%clk 0:01:46]} 20. Bxf8 {[%clk 0:01:40]}  Bxf8 {[%clk 0:01:46]} 21. Na4 {[%clk 0:01:34]}  Bb4 {[%clk 0:01:44]} 22. Qc1 {[%clk 0:01:26]}  Qe7 {[%clk 0:01:35]} 23. Qc6 {[%clk 0:01:24]}  Rb8 {[%clk 0:01:29]} 24. b6 {[%clk 0:01:16]}  Ne4 {[%clk 0:01:27]} 25. Qc7 {[%clk 0:01:12]}  Qe8 {[%clk 0:01:15]} 26. Rfc1 {[%clk 0:00:56]}  Bd6 {[%clk 0:01:14]} 27. Qc6 {[%clk 0:00:55]}  Qd8 {[%clk 0:01:10]} 28. b7 {[%clk 0:00:51]}  Nd2 {[%clk 0:01:09]} 29. Qc8 {[%clk 0:00:48]}  Kf8 {[%clk 0:01:00]} 30. Qxd8+ {[%clk 0:00:47]}  Rxd8 {[%clk 0:01:01]} 31. Rc8 {[%clk 0:00:47]}  Ke7 {[%clk 0:01:02]} 32. Rac1 {[%clk 0:00:40]}  Nc4 {[%clk 0:00:57]} 33. Rb1 {[%clk 0:00:40]}  Bb8 {[%clk 0:00:56]} 34. Nc5 {[%clk 0:00:36]}  Nd6 {[%clk 0:00:44]} 35. Rxd8 {[%clk 0:00:36]}  Kxd8 {[%clk 0:00:44]} 36. Na6 {[%clk 0:00:37]} 1-0


[Site "https://www.chess.com"]

[Event "Titled Tuesday Blitz May 24 Late 2022"]
[White "Perez Leiva, Jerzy Jesus"]
[Black "Antipov, Mikhail Al."]
[WhiteFideId "3524337"]
[BlackFideId "4107012"]
[WhiteElo "2287"]
[BlackElo "2512"]
[Result "0-1"]
[Round "01"]
[TimeControl "180+1"]
[Date "2022.05.24"]
[WhiteClock "0:00:07"]
[BlackClock "0:00:11"]

1. e4 {[%clk 0:02:54]}  c5 {[%clk 0:02:47]} 2. Nf3 {[%clk 0:02:54]}  d6 {[%clk 0:02:47]} 3. d4 {[%clk 0:02:53]}  cxd4 {[%clk 0:02:48]} 4. Nxd4 {[%clk 0:02:54]}  Nf6 {[%clk 0:02:47]} 5. Nc3 {[%clk 0:02:55]}  a6 {[%clk 0:02:43]} 6. Bg5 {[%clk 0:02:55]}  Nbd7 {[%clk 0:02:41]} 7. Qe2 {[%clk 0:02:53]}  b5 {[%clk 0:02:18]} 8. O-O-O {[%clk 0:02:18]}  Bb7 {[%clk 0:02:15]} 9. Kb1 {[%clk 0:02:10]}  e6 {[%clk 0:02:08]} 10. h4 {[%clk 0:02:08]}  Rc8 {[%clk 0:02:02]} 11. f3 {[%clk 0:01:55]}  Rxc3 {[%clk 0:01:57]} 12. bxc3 {[%clk 0:01:56]}  Qc7 {[%clk 0:01:58]} 13. Qe1 {[%clk 0:01:57]}  Be7 {[%clk 0:01:53]} 14. g4 {[%clk 0:01:34]}  Nb6 {[%clk 0:01:47]} 15. Bc1 {[%clk 0:01:25]}  Na4 {[%clk 0:01:42]} 16. c4 {[%clk 0:01:12]}  bxc4 {[%clk 0:01:36]} 17. Qb4 {[%clk 0:01:05]}  Nb6 {[%clk 0:01:23]} 18. g5 {[%clk 0:01:04]}  Nfd7 {[%clk 0:01:18]} 19. h5 {[%clk 0:00:54]}  O-O {[%clk 0:01:10]} 20. Ka1 {[%clk 0:00:51]}  Rb8 {[%clk 0:01:02]} 21. Qa5 {[%clk 0:00:50]}  d5 {[%clk 0:00:57]} 22. g6 {[%clk 0:00:40]}  Bf6 {[%clk 0:00:51]} 23. gxf7+ {[%clk 0:00:35]}  Kxf7 {[%clk 0:00:51]} 24. c3 {[%clk 0:00:34]}  Qc5 {[%clk 0:00:26]} 25. Qxc5 {[%clk 0:00:32]}  Nxc5 {[%clk 0:00:27]} 26. exd5 {[%clk 0:00:25]}  Nxd5 {[%clk 0:00:22]} 27. Ba3 {[%clk 0:00:12]}  Nxc3 {[%clk 0:00:20]} 28. Bxc5 {[%clk 0:00:09]}  Nxd1 {[%clk 0:00:17]} 29. Bxc4 {[%clk 0:00:10]}  Ne3 {[%clk 0:00:12]} 30. Bxe6+ {[%clk 0:00:10]}  Ke8 {[%clk 0:00:13]} 31. Rb1 {[%clk 0:00:08]}  Nc2+ {[%clk 0:00:11]} 32. Kb2 {[%clk 0:00:07]}  Nxd4 {[%clk 0:00:12]} 33. Ka3 {[%clk 0:00:07]}  Nxe6 {[%clk 0:00:11]} 0-1


[Site "https://www.chess.com"]

[Event "Titled Tuesday Blitz May 24 Late 2022"]
[White "Petrova, Irina"]
[Black "Halkias, Stelios"]
[WhiteFideId "14124122"]
[BlackFideId "4201809"]
[WhiteElo "1993"]
[BlackElo "2453"]
[Result "0-1"]
[Round "01"]
[TimeControl "180+1"]
[Date "2022.05.25"]
[WhiteClock "0:00:10"]
[BlackClock "0:01:18"]

1. e4 {[%clk 0:02:53]}  c6 {[%clk 0:02:58]} 2. d4 {[%clk 0:02:53]}  d5 {[%clk 0:02:57]} 3. e5 {[%clk 0:02:53]}  c5 {[%clk 0:02:54]} 4. dxc5 {[%clk 0:02:54]}  e6 {[%clk 0:02:52]} 5. a3 {[%clk 0:02:53]}  Bxc5 {[%clk 0:02:51]} 6. b4 {[%clk 0:02:53]}  Be7 {[%clk 0:02:41]} 7. Qg4 {[%clk 0:02:52]}  Kf8 {[%clk 0:02:33]} 8. Bb2 {[%clk 0:02:48]}  a5 {[%clk 0:02:30]} 9. b5 {[%clk 0:02:44]}  Nh6 {[%clk 0:02:29]} 10. Qd1 {[%clk 0:02:37]}  Nd7 {[%clk 0:02:29]} 11. Nf3 {[%clk 0:02:36]}  Nc5 {[%clk 0:02:22]} 12. Nbd2 {[%clk 0:02:31]}  Na4 {[%clk 0:02:19]} 13. Bd4 {[%clk 0:02:24]}  Nf5 {[%clk 0:02:19]} 14. Nb3 {[%clk 0:02:11]}  Bd7 {[%clk 0:02:14]} 15. Be2 {[%clk 0:02:05]}  Nxd4 {[%clk 0:02:13]} 16. Qxd4 {[%clk 0:02:06]}  Nb6 {[%clk 0:02:06]} 17. O-O {[%clk 0:02:03]}  a4 {[%clk 0:02:03]} 18. Nc5 {[%clk 0:01:59]}  Qc7 {[%clk 0:01:55]} 19. Nxd7+ {[%clk 0:01:55]}  Nxd7 {[%clk 0:01:55]} 20. c4 {[%clk 0:01:49]}  Bc5 {[%clk 0:01:55]} 21. Qf4 {[%clk 0:01:45]}  d4 {[%clk 0:01:54]} 22. Ng5 {[%clk 0:01:42]}  Nf6 {[%clk 0:01:49]} 23. g3 {[%clk 0:01:22]}  h6 {[%clk 0:01:47]} 24. exf6 {[%clk 0:01:18]}  Qxf4 {[%clk 0:01:47]} 25. fxg7+ {[%clk 0:01:17]}  Kxg7 {[%clk 0:01:47]} 26. Nxe6+ {[%clk 0:01:17]}  fxe6 {[%clk 0:01:47]} 27. gxf4 {[%clk 0:01:17]}  Rhf8 {[%clk 0:01:47]} 28. Bd3 {[%clk 0:01:08]}  Rxf4 {[%clk 0:01:47]} 29. Rfe1 {[%clk 0:01:07]}  Kf6 {[%clk 0:01:46]} 30. Be4 {[%clk 0:00:54]}  Rg8+ {[%clk 0:01:45]} 31. Kf1 {[%clk 0:00:51]}  b6 {[%clk 0:01:44]} 32. f3 {[%clk 0:00:48]}  Rh4 {[%clk 0:01:35]} 33. Re2 {[%clk 0:00:43]}  d3 {[%clk 0:01:26]} 34. Rg2 {[%clk 0:00:43]}  Rxh2 {[%clk 0:01:26]} 35. Rxg8 {[%clk 0:00:36]}  Rh1+ {[%clk 0:01:27]} 36. Kg2 {[%clk 0:00:35]}  Rxa1 {[%clk 0:01:27]} 37. Rg6+ {[%clk 0:00:32]}  Ke5 {[%clk 0:01:27]} 38. Bxd3 {[%clk 0:00:28]}  Rxa3 {[%clk 0:01:27]} 39. Be4 {[%clk 0:00:24]}  Ra2+ {[%clk 0:01:24]} 40. Kg3 {[%clk 0:00:18]}  a3 {[%clk 0:01:23]} 41. Rxh6 {[%clk 0:00:17]}  Rd2 {[%clk 0:01:19]} 42. Rh1 {[%clk 0:00:13]}  a2 {[%clk 0:01:18]} 43. Re1 {[%clk 0:00:10]}  Bf2+ {[%clk 0:01:18]} 0-1


[Site "https://www.chess.com"]

[Event "Titled Tuesday Blitz May 24 Late 2022"]
[White "Prieto Aranguren, Alain"]
[Black "Jeet, Jain"]
[WhiteFideId "2268906"]
[BlackFideId "5073022"]
[WhiteElo "2235"]
[BlackElo "2028"]
[Result "0-1"]
[Round "01"]
[TimeControl "180+1"]
[Date "2022.05.25"]
[WhiteClock "0:01:06"]
[BlackClock "0:01:10"]

1. d4 {[%clk 0:02:57]}  c5 {[%clk 0:02:41]} 2. d5 {[%clk 0:02:57]}  e5 {[%clk 0:02:40]} 3. Nc3 {[%clk 0:02:56]}  d6 {[%clk 0:02:41]} 4. e4 {[%clk 0:02:56]}  Be7 {[%clk 0:02:40]} 5. Nf3 {[%clk 0:02:55]}  Nf6 {[%clk 0:02:39]} 6. Nd2 {[%clk 0:02:55]}  O-O {[%clk 0:02:39]} 7. Nc4 {[%clk 0:02:54]}  a6 {[%clk 0:02:38]} 8. a4 {[%clk 0:02:54]}  b6 {[%clk 0:02:38]} 9. f3 {[%clk 0:02:54]}  Bd7 {[%clk 0:02:38]} 10. Be3 {[%clk 0:02:53]}  Ra7 {[%clk 0:02:33]} 11. Qd2 {[%clk 0:02:53]}  Rb7 {[%clk 0:02:31]} 12. Be2 {[%clk 0:02:49]}  b5 {[%clk 0:02:31]} 13. axb5 {[%clk 0:02:48]}  axb5 {[%clk 0:02:32]} 14. Na5 {[%clk 0:02:47]}  Ra7 {[%clk 0:02:32]} 15. Nxb5 {[%clk 0:02:44]}  Bxb5 {[%clk 0:02:31]} 16. Bxb5 {[%clk 0:02:44]}  Qb6 {[%clk 0:02:29]} 17. Bc4 {[%clk 0:02:28]}  Qxb2 {[%clk 0:02:22]} 18. O-O {[%clk 0:02:27]}  Qb6 {[%clk 0:02:20]} 19. Rfb1 {[%clk 0:02:24]}  Qc7 {[%clk 0:02:19]} 20. Bb5 {[%clk 0:02:12]}  Bd8 {[%clk 0:02:06]} 21. Nc6 {[%clk 0:02:10]}  Nxc6 {[%clk 0:02:05]} 22. Bxc6 {[%clk 0:02:04]}  Rxa1 {[%clk 0:02:02]} 23. Rxa1 {[%clk 0:02:04]}  h6 {[%clk 0:01:54]} 24. Rb1 {[%clk 0:02:00]}  Qa7 {[%clk 0:01:42]} 25. Rb7 {[%clk 0:01:57]}  Qa1+ {[%clk 0:01:41]} 26. Qc1 {[%clk 0:01:57]}  Qc3 {[%clk 0:01:37]} 27. Rb3 {[%clk 0:01:51]}  Qa5 {[%clk 0:01:35]} 28. Bd2 {[%clk 0:01:48]}  Qa7 {[%clk 0:01:33]} 29. Rb7 {[%clk 0:01:45]}  Qa6 {[%clk 0:01:28]} 30. c4 {[%clk 0:01:38]}  Nh5 {[%clk 0:01:25]} 31. Qb2 {[%clk 0:01:31]}  Qxc4 {[%clk 0:01:22]} 32. Bb5 {[%clk 0:01:19]}  Qd4+ {[%clk 0:01:19]} 33. Qxd4 {[%clk 0:01:19]}  exd4 {[%clk 0:01:19]} 34. Rd7 {[%clk 0:01:17]}  Bf6 {[%clk 0:01:14]} 35. Rxd6 {[%clk 0:01:15]}  Rb8 {[%clk 0:01:15]} 36. Bd3 {[%clk 0:01:11]}  Rb3 {[%clk 0:01:11]} 37. Rd8+ {[%clk 0:01:06]}  Bxd8 {[%clk 0:01:10]} 0-1


[Site "https://www.chess.com"]

[Event "Titled Tuesday Blitz May 24 Late 2022"]
[White "Rasulov, Vugar"]
[Black "Cremisi, Daniel"]
[WhiteFideId "13402390"]
[BlackFideId "2089882"]
[WhiteElo "2560"]
[BlackElo "2172"]
[Result "1-0"]
[Round "01"]
[TimeControl "180+1"]
[Date "2022.05.24"]
[WhiteClock "0:02:00"]
[BlackClock "0:00:16"]

1. Nf3 {[%clk 0:03:00]}  e6 {[%clk 0:02:59]} 2. g3 {[%clk 0:03:00]}  Nf6 {[%clk 0:02:59]} 3. Bg2 {[%clk 0:03:01]}  b6 {[%clk 0:02:59]} 4. Ne5 {[%clk 0:03:00]}  d5 {[%clk 0:02:57]} 5. O-O {[%clk 0:03:00]}  Bb7 {[%clk 0:02:57]} 6. d4 {[%clk 0:03:00]}  Nbd7 {[%clk 0:02:57]} 7. c4 {[%clk 0:03:01]}  c6 {[%clk 0:02:53]} 8. Nc3 {[%clk 0:02:57]}  Nxe5 {[%clk 0:02:52]} 9. dxe5 {[%clk 0:02:58]}  Nd7 {[%clk 0:02:52]} 10. cxd5 {[%clk 0:02:57]}  cxd5 {[%clk 0:02:52]} 11. e4 {[%clk 0:02:49]}  dxe4 {[%clk 0:02:47]} 12. Nxe4 {[%clk 0:02:50]}  Nxe5 {[%clk 0:02:25]} 13. Qh5 {[%clk 0:02:50]}  Ng6 {[%clk 0:02:15]} 14. Rd1 {[%clk 0:02:45]}  Qc7 {[%clk 0:02:15]} 15. Bf4 {[%clk 0:02:43]}  Nxf4 {[%clk 0:02:14]} 16. gxf4 {[%clk 0:02:42]}  Be7 {[%clk 0:02:03]} 17. Qb5+ {[%clk 0:02:24]}  Kf8 {[%clk 0:01:41]} 18. Rd7 {[%clk 0:02:21]}  Qc6 {[%clk 0:01:34]} 19. Qd3 {[%clk 0:02:12]}  Rc8 {[%clk 0:00:58]} 20. Rd1 {[%clk 0:02:01]}  f5 {[%clk 0:00:36]} 21. Rxe7 {[%clk 0:02:00]}  fxe4 {[%clk 0:00:16]} 22. Qa3 {[%clk 0:02:00]}  Qc5 {[%clk 0:00:16]} 23. Qxc5 {[%clk 0:02:00]}  Rxc5 {[%clk 0:00:16]} 24. Rxb7 {[%clk 0:02:00]} 1-0


[Site "https://www.chess.com"]

[Event "Titled Tuesday Blitz May 24 Late 2022"]
[White "Ronka, Erik"]
[Black "Zakhartsov, Vladimir"]
[WhiteFideId "505080"]
[BlackFideId "4145097"]
[WhiteElo "2264"]
[BlackElo "2428"]
[Result "0-1"]
[Round "01"]
[TimeControl "180+1"]
[Date "2022.05.24"]
[WhiteClock "0:00:09"]
[BlackClock "0:00:04"]

1. e4 {[%clk 0:03:00]}  c5 {[%clk 0:02:56]} 2. Nf3 {[%clk 0:03:01]}  Nc6 {[%clk 0:02:55]} 3. d4 {[%clk 0:03:01]}  cxd4 {[%clk 0:02:55]} 4. Nxd4 {[%clk 0:03:02]}  g6 {[%clk 0:02:55]} 5. Nc3 {[%clk 0:03:02]}  Bg7 {[%clk 0:02:54]} 6. Be3 {[%clk 0:03:03]}  Nf6 {[%clk 0:02:55]} 7. Nxc6 {[%clk 0:03:03]}  bxc6 {[%clk 0:02:55]} 8. e5 {[%clk 0:03:03]}  Ng8 {[%clk 0:02:55]} 9. Bd4 {[%clk 0:03:02]}  f6 {[%clk 0:02:55]} 10. Qe2 {[%clk 0:03:01]}  fxe5 {[%clk 0:02:50]} 11. Bxe5 {[%clk 0:03:02]}  Nf6 {[%clk 0:02:50]} 12. O-O-O {[%clk 0:02:59]}  O-O {[%clk 0:02:50]} 13. Qc4+ {[%clk 0:02:56]}  Kh8 {[%clk 0:02:50]} 14. Ne4 {[%clk 0:02:51]}  d5 {[%clk 0:02:41]} 15. Qc3 {[%clk 0:02:51]}  Nxe4 {[%clk 0:02:21]} 16. Bxg7+ {[%clk 0:02:50]}  Kg8 {[%clk 0:02:22]} 17. Qe5 {[%clk 0:02:35]}  Nxf2 {[%clk 0:01:47]} 18. Bxf8 {[%clk 0:02:26]}  Qxf8 {[%clk 0:01:48]} 19. Bb5 {[%clk 0:02:23]}  Bb7 {[%clk 0:01:04]} 20. Qe6+ {[%clk 0:01:48]}  Kh8 {[%clk 0:01:04]} 21. Bxc6 {[%clk 0:01:24]}  Bxc6 {[%clk 0:01:02]} 22. Qxc6 {[%clk 0:01:25]}  Nxh1 {[%clk 0:01:01]} 23. Rxh1 {[%clk 0:01:17]}  Rd8 {[%clk 0:00:59]} 24. Qe6 {[%clk 0:01:08]}  Rd6 {[%clk 0:00:52]} 25. Qe3 {[%clk 0:01:05]}  d4 {[%clk 0:00:51]} 26. Qe5+ {[%clk 0:01:02]}  Qf6 {[%clk 0:00:44]} 27. Re1 {[%clk 0:01:02]}  Qxe5 {[%clk 0:00:32]} 28. Rxe5 {[%clk 0:01:03]}  e6 {[%clk 0:00:33]} 29. Kd2 {[%clk 0:01:02]}  Kg7 {[%clk 0:00:33]} 30. Kd3 {[%clk 0:00:59]}  Kf6 {[%clk 0:00:34]} 31. Ra5 {[%clk 0:00:49]}  a6 {[%clk 0:00:33]} 32. Ke4 {[%clk 0:00:49]}  Rc6 {[%clk 0:00:30]} 33. b4 {[%clk 0:00:36]}  e5 {[%clk 0:00:09]} 34. Rxe5 {[%clk 0:00:19]}  Rxc2 {[%clk 0:00:09]} 35. Ra5 {[%clk 0:00:19]}  Rxg2 {[%clk 0:00:04]} 36. Rxa6+ {[%clk 0:00:19]}  Ke7 {[%clk 0:00:03]} 37. b5 {[%clk 0:00:19]}  Rxh2 {[%clk 0:00:03]} 38. a4 {[%clk 0:00:19]}  Rb2 {[%clk 0:00:02]} 39. b6 {[%clk 0:00:20]}  Kd6 {[%clk 0:00:02]} 40. a5 {[%clk 0:00:20]}  Rb4 {[%clk 0:00:01]} 41. Ra7 {[%clk 0:00:20]}  Kc6 {[%clk 0:00:01]} 42. Rc7+ {[%clk 0:00:19]}  Kb5 {[%clk 0:00:02]} 43. Ra7 {[%clk 0:00:16]}  Kc6 {[%clk 0:00:02]} 44. Rxh7 {[%clk 0:00:13]}  Rb5 {[%clk 0:00:02]} 45. Ra7 {[%clk 0:00:11]}  g5 {[%clk 0:00:02]} 46. Kxd4 {[%clk 0:00:12]}  g4 {[%clk 0:00:02]} 47. Rc7+ {[%clk 0:00:12]}  Kd6 {[%clk 0:00:02]} 48. Rc8 {[%clk 0:00:10]}  g3 {[%clk 0:00:01]} 49. a6 {[%clk 0:00:08]}  g2 {[%clk 0:00:01]} 50. Rg8 {[%clk 0:00:08]}  Rxb6 {[%clk 0:00:02]} 51. a7 {[%clk 0:00:08]}  Ra6 {[%clk 0:00:02]} 52. Rg6+ {[%clk 0:00:08]}  Kc7 {[%clk 0:00:02]} 53. Rxa6 {[%clk 0:00:09]}  g1=Q+ {[%clk 0:00:03]} 54. Kc4 {[%clk 0:00:09]}  Qf1+ {[%clk 0:00:03]} 55. Kc5 {[%clk 0:00:09]}  Qxa6 {[%clk 0:00:04]} 56. Kd5 {[%clk 0:00:09]}  Qxa7 {[%clk 0:00:04]} 0-1


[Site "https://www.chess.com"]

[Event "Titled Tuesday Blitz May 24 Late 2022"]
[White "Sailer, Mike"]
[Black "Zhurbinsky, David"]
[WhiteFideId "2012901"]
[BlackFideId "2072904"]
[WhiteElo "2109"]
[BlackElo "2569"]
[Result "0-1"]
[Round "01"]
[TimeControl "180+1"]
[Date "2022.05.25"]
[WhiteClock "0:00:21"]
[BlackClock "0:01:48"]

1. d4 {[%clk 0:02:59]}  Nf6 {[%clk 0:02:59]} 2. Nf3 {[%clk 0:02:56]}  e6 {[%clk 0:03:00]} 3. Bf4 {[%clk 0:02:56]}  d5 {[%clk 0:02:59]} 4. e3 {[%clk 0:02:56]}  c5 {[%clk 0:02:59]} 5. Nc3 {[%clk 0:02:56]}  a6 {[%clk 0:02:58]} 6. Be2 {[%clk 0:02:56]}  Nc6 {[%clk 0:02:59]} 7. O-O {[%clk 0:02:56]}  Bd6 {[%clk 0:02:59]} 8. Bxd6 {[%clk 0:02:53]}  Qxd6 {[%clk 0:03:00]} 9. dxc5 {[%clk 0:02:53]}  Qxc5 {[%clk 0:03:00]} 10. Nd4 {[%clk 0:02:54]}  O-O {[%clk 0:02:53]} 11. Nxc6 {[%clk 0:02:54]}  bxc6 {[%clk 0:02:50]} 12. Na4 {[%clk 0:02:54]}  Qa5 {[%clk 0:02:44]} 13. c4 {[%clk 0:02:51]}  Rb8 {[%clk 0:02:37]} 14. a3 {[%clk 0:02:41]}  c5 {[%clk 0:02:31]} 15. Qc2 {[%clk 0:01:59]}  Bd7 {[%clk 0:02:18]} 16. Nc3 {[%clk 0:01:55]}  d4 {[%clk 0:02:17]} 17. exd4 {[%clk 0:01:45]}  cxd4 {[%clk 0:02:18]} 18. b4 {[%clk 0:01:35]}  Qe5 {[%clk 0:02:08]} 19. Na2 {[%clk 0:01:13]}  Bc6 {[%clk 0:02:04]} 20. Bd3 {[%clk 0:01:05]}  Ng4 {[%clk 0:01:57]} 21. f4 {[%clk 0:00:49]}  Qe3+ {[%clk 0:01:47]} 22. Kh1 {[%clk 0:00:49]}  Qh3 {[%clk 0:01:47]} 23. Bxh7+ {[%clk 0:00:24]}  Kh8 {[%clk 0:01:48]} 24. Rf3 {[%clk 0:00:21]}  Qxh2# {[%clk 0:01:48]} 0-1


[Site "https://www.chess.com"]

[Event "Titled Tuesday Blitz May 24 Late 2022"]
[White "Saim, Mohamed Ilias"]
[Black "Taichman, Ori"]
[WhiteFideId "7900465"]
[BlackFideId "2804069"]
[WhiteElo "2006"]
[BlackElo "2227"]
[Result "0-1"]
[Round "01"]
[TimeControl "180+1"]
[Date "2022.05.25"]
[WhiteClock "0:00:02"]
[BlackClock "0:00:26"]

1. d4 {[%clk 0:02:58]}  Nf6 {[%clk 0:02:59]} 2. Nf3 {[%clk 0:02:41]}  g6 {[%clk 0:02:57]} 3. e3 {[%clk 0:02:40]}  Bg7 {[%clk 0:02:57]} 4. Be2 {[%clk 0:02:40]}  O-O {[%clk 0:02:57]} 5. O-O {[%clk 0:02:40]}  b6 {[%clk 0:02:58]} 6. c4 {[%clk 0:02:39]}  Bb7 {[%clk 0:02:58]} 7. Nc3 {[%clk 0:02:39]}  Ne4 {[%clk 0:02:59]} 8. Qc2 {[%clk 0:02:34]}  Nxc3 {[%clk 0:02:58]} 9. Qxc3 {[%clk 0:02:33]}  c5 {[%clk 0:02:57]} 10. Rd1 {[%clk 0:02:25]}  d6 {[%clk 0:02:56]} 11. Qc2 {[%clk 0:02:16]}  Nd7 {[%clk 0:02:56]} 12. Rb1 {[%clk 0:02:11]}  Qc7 {[%clk 0:02:49]} 13. b4 {[%clk 0:02:07]}  Nf6 {[%clk 0:02:25]} 14. Bd3 {[%clk 0:01:59]}  Bxf3 {[%clk 0:02:23]} 15. gxf3 {[%clk 0:02:00]}  Qc6 {[%clk 0:02:14]} 16. Be4 {[%clk 0:01:47]}  Nxe4 {[%clk 0:02:14]} 17. Qxe4 {[%clk 0:01:46]}  Qa4 {[%clk 0:02:08]} 18. Rd2 {[%clk 0:01:20]}  cxd4 {[%clk 0:02:07]} 19. exd4 {[%clk 0:01:16]}  e6 {[%clk 0:02:04]} 20. a3 {[%clk 0:01:10]}  Rad8 {[%clk 0:01:46]} 21. Bb2 {[%clk 0:01:00]}  d5 {[%clk 0:01:38]} 22. Qc2 {[%clk 0:00:53]}  Qc6 {[%clk 0:01:12]} 23. c5 {[%clk 0:00:46]}  bxc5 {[%clk 0:01:07]} 24. bxc5 {[%clk 0:00:36]}  Rb8 {[%clk 0:01:04]} 25. Ba1 {[%clk 0:00:36]}  Bh6 {[%clk 0:00:40]} 26. Re2 {[%clk 0:00:35]}  Bf4 {[%clk 0:00:39]} 27. h3 {[%clk 0:00:22]}  Rb5 {[%clk 0:00:26]} 28. Rxb5 {[%clk 0:00:19]}  Qxb5 {[%clk 0:00:27]} 29. Qb2 {[%clk 0:00:17]}  Qd3 {[%clk 0:00:26]} 30. Qc2 {[%clk 0:00:14]}  Qxf3 {[%clk 0:00:27]} 31. c6 {[%clk 0:00:09]}  Qxh3 {[%clk 0:00:27]} 32. f3 {[%clk 0:00:06]}  Qxf3 {[%clk 0:00:25]} 33. c7 {[%clk 0:00:05]}  Be3+ {[%clk 0:00:25]} 34. Rxe3 {[%clk 0:00:04]}  Qxe3+ {[%clk 0:00:25]} 35. Kf1 {[%clk 0:00:04]}  Rc8 {[%clk 0:00:25]} 36. Bb2 {[%clk 0:00:03]}  Qf3+ {[%clk 0:00:25]} 37. Ke1 {[%clk 0:00:03]}  Qg3+ {[%clk 0:00:26]} 38. Kd1 {[%clk 0:00:03]}  Qxc7 {[%clk 0:00:26]} 39. Qd2 {[%clk 0:00:02]}  Qc4 {[%clk 0:00:26]} 0-1


[Site "https://www.chess.com"]